fUST/lending_fUST_20250628
["ID","MTS","AMOUNT","RATE_DAILY","PERIOD"]
[368162234,1751043053928,-320.3769482,0.00020547,2]
[368162235,1751043053938,-781.68,0.00020547,2]
[368162236,1751043053948,-1656.91,0.00020547,2]
[368162237,1751043053957,-460.0,0.00020547,2]
[368162238,1751043053966,-2293.32,0.00020547,2]
[368162239,1751043053975,-460.0,0.00020547,2]
[368162240,1751043053984,-830.87,0.00020547,2]
[368162241,1751043053993,-460.0,0.00020547,2]
[368162242,1751043054002,-824.14,0.00020547,2]
[368162243,1751043054011,-987.87,0.00020547,2]
[368162244,1751043054021,-460.0,0.00020547,2]
[368162245,1751043054030,-460.0,0.00020547,2]
[368162246,1751043054039,-460.0,0.00020547,2]
[368162247,1751043054048,-460.0,0.00020547,2]
[368162248,1751043054058,-460.0,0.00020547,2]
[368162249,1751043054068,-6348.47,0.00020547,2]
[368162250,1751043054076,-758.58,0.00020547,2]
[368162251,1751043054086,-1276.09,0.00020547,2]
[368162252,1751043054095,-460.0,0.00020547,2]
[368162253,1751043054104,-4728.92,0.00020547,2]
[368162254,1751043054114,-1011.87,0.00020547,2]
[368162255,1751043054123,-460.0,0.00020547,2]
[368162256,1751043054132,-1345.96,0.00020547,2]
[368162257,1751043054141,-3328.7,0.00020547,2]
[368162258,1751043054150,-460.0,0.00020547,2]
[368162259,1751043054160,-460.0,0.00020547,2]
[368162260,1751043054170,-1436.21,0.00020547,2]
[368162261,1751043054180,-598.96,0.00020547,2]
[368162262,1751043054190,-460.0,0.00020547,2]
[368162263,1751043054199,-610.17,0.00020547,2]
[368162264,1751043054208,-634.89,0.00020547,2]
[368162265,1751043054218,-2701.01,0.00020547,2]
[368162266,1751043054227,-1107.05,0.00020547,2]
[368162267,1751043054236,-320.42172575,0.00020568,2]
[368162268,1751043054245,-2378.19,0.000206,2]
[368162269,1751043054254,-151.0,0.000207,4]
[368162270,1751043054263,-7891.5880448,0.00020728,3]
[368162271,1751043054272,-639.89679522,0.00020817,2]
[368162272,1751043054281,-460.0,0.00020821,2]
[368162273,1751043054290,-460.0,0.00020821,2]
[368162274,1751043054299,-460.0,0.00020821,2]
[368162275,1751043054308,-260.67427,0.00020821,2]
[368162276,1751043054317,-151.0,0.00020821,2]
[368162277,1751043054326,-460.0,0.00020821,2]
[368162278,1751043054335,-460.0,0.00020821,2]
[368162279,1751043054344,-177.914021,0.00020821,2]
[368162280,1751043054353,-151.0,0.00020821,2]
[368162281,1751043054361,-151.0,0.00020821,2]
[368162282,1751043054371,-458.19878345,0.00020821,2]
[368162283,1751043054380,-460.0,0.00020821,2]
[368162284,1751043054389,-1233.005726,0.00020821,2]
[368162285,1751043054398,-1233.005726,0.00020821,2]
[368162286,1751043054407,-460.0,0.00020821,2]
[368162287,1751043054416,-460.0,0.00020821,2]
[368162288,1751043054425,-460.0,0.00020821,2]
[368162289,1751043054434,-151.0,0.00020821,2]
[368162290,1751043054444,-355.44777927,0.00020821,2]
[368162291,1751043054453,-151.0,0.00020821,2]
[368162292,1751043054463,-460.0,0.00020821,2]
[368162293,1751043054472,-460.0,0.00020821,2]
[368162294,1751043054481,-460.0,0.00020821,2]
[368162295,1751043054490,-460.0,0.00020821,2]
[368162296,1751043054499,-274.57,0.00020821,2]
[368162297,1751043054508,-708.73,0.00020821,2]
[368162298,1751043054517,-460.0,0.00020821,2]
[368162299,1751043054526,-163.47,0.00020821,2]
[368162300,1751043054539,-460.0,0.00020821,2]
[368162301,1751043054548,-460.0,0.00020821,2]
[368162302,1751043054557,-460.0,0.00020821,2]
[368162303,1751043054567,-460.0,0.00020821,2]
[368162304,1751043054578,-151.0,0.00020821,2]
[368162305,1751043054588,-460.0,0.00020821,2]
[368162306,1751043054597,-460.0,0.00020821,2]
[368162307,1751043054607,-460.0,0.00020821,2]
[368162308,1751043054616,-817.86,0.00020821,2]
[368162309,1751043054625,-632.72,0.00020821,2]
[368162310,1751043054635,-151.0,0.00020821,2]
[368162311,1751043054644,-151.0,0.00020821,2]
[368162312,1751043054654,-285.914838,0.00020821,2]
[368162313,1751043054664,-285.914838,0.00020821,2]
[368162314,1751043054673,-460.0,0.00020821,2]
[368162315,1751043054682,-460.0,0.00020821,2]
[368162316,1751043054691,-460.0,0.00020821,2]
[368162317,1751043054700,-460.0,0.00020821,2]
[368162318,1751043054710,-460.0,0.00020821,2]
[368162319,1751043054720,-460.0,0.00020821,2]
[368162320,1751043054729,-460.0,0.00020821,2]
[368162321,1751043054739,-665.43,0.00020821,2]
[368162322,1751043054748,-460.0,0.00020821,2]
[368162323,1751043054757,-460.0,0.00020821,2]
[368162324,1751043054767,-460.0,0.00020821,2]
[368162325,1751043054776,-460.0,0.00020821,2]
[368162326,1751043054785,-460.0,0.00020821,2]
[368162327,1751043054795,-432.22,0.00020821,2]
[368162328,1751043054804,-184.577065,0.00020821,2]
[368162329,1751043054813,-184.577065,0.00020821,2]
[368162330,1751043054823,-153.164602,0.00020821,2]
[368162331,1751043054833,-460.0,0.00020821,2]
[368162332,1751043054842,-5094.42,0.00020821,2]
[368162333,1751043054852,-460.0,0.00020821,2]
[368162334,1751043054862,-1728.2,0.00020821,2]
[368162335,1751043054872,-4150.31,0.00020821,2]
[368162336,1751043054881,-460.0,0.00020821,2]
[368162337,1751043054891,-1950.71,0.00020821,2]
[368162338,1751043054900,-460.0,0.00020821,2]
[368162339,1751043054910,-460.0,0.00020821,2]
[368162340,1751043054919,-4539.33,0.00020821,2]
[368162341,1751043054929,-460.0,0.00020821,2]
[368162342,1751043054940,-581.86,0.00020821,2]
[368162343,1751043054949,-692.74,0.00020821,2]
[368162344,1751043054959,-460.0,0.00020821,2]
[368162345,1751043054969,-460.0,0.00020821,2]
[368162346,1751043054978,-460.0,0.00020821,2]
[368162347,1751043054988,-1477.84,0.00020821,2]
[368162348,1751043054999,-462.2,0.00020821,2]
[368162349,1751043055008,-1419.89,0.00020821,2]
[368162350,1751043055017,-2340.21,0.00020821,2]
[368162351,1751043055026,-460.0,0.00020821,2]
[368162352,1751043055036,-460.0,0.00020821,2]
[368162353,1751043055045,-460.0,0.00020821,2]
[368162354,1751043055054,-460.0,0.00020821,2]
[368162355,1751043055064,-460.0,0.00020821,2]
[368162356,1751043055073,-1165.21,0.00020821,2]
[368162357,1751043055082,-1348.73,0.00020821,2]
[368162358,1751043055091,-151.0,0.00020821,2]
[368162359,1751043055101,-460.0,0.00020821,2]
[368162360,1751043055110,-465.34,0.00020821,2]
[368162361,1751043055119,-460.0,0.00020821,2]
[368162362,1751043055129,-460.0,0.00020821,2]
[368162363,1751043055138,-499.4,0.00020821,2]
[368162364,1751043055147,-151.0,0.00020821,2]
[368162365,1751043055156,-1688.52,0.00020821,2]
[368162366,1751043055166,-151.0,0.00020821,2]
[368162367,1751043055175,-151.0,0.00020821,2]
[368162368,1751043055185,-460.0,0.00020821,2]
[368162369,1751043055195,-460.0,0.00020821,2]
[368162370,1751043055205,-460.0,0.00020821,2]
[368162371,1751043055214,-839.88,0.00020821,2]
[368162372,1751043055223,-151.0,0.00020821,2]
[368162373,1751043055233,-460.0,0.00020821,2]
[368162374,1751043055242,-460.0,0.00020821,2]
[368162375,1751043055251,-460.0,0.00020821,2]
[368162376,1751043055261,-688.86,0.00020821,2]
[368162377,1751043055270,-460.0,0.00020821,2]
[368162378,1751043055280,-460.0,0.00020821,2]
[368162379,1751043055292,-460.0,0.00020821,2]
[368162380,1751043055301,-194.21409495,0.00020821,2]
[368162381,1751043055310,-671.69,0.00020821,2]
[368162382,1751043055320,-862.89,0.00020821,2]
[368162383,1751043055330,-460.0,0.00020821,2]
[368162384,1751043055340,-460.0,0.00020821,2]
[368162385,1751043055351,-3251.71,0.00020821,2]
[368162386,1751043055361,-781.68,0.00020821,2]
[368162387,1751043055370,-1656.91,0.00020821,2]
[368162388,1751043055380,-460.0,0.00020821,2]
[368162389,1751043055390,-2293.32,0.00020821,2]
[368162390,1751043055399,-460.0,0.00020821,2]
[368162391,1751043055408,-830.87,0.00020821,2]
[368162392,1751043055418,-151.0,0.00020821,2]
[368162393,1751043055427,-460.0,0.00020821,2]
[368162394,1751043055436,-824.14,0.00020821,2]
[368162395,1751043055445,-987.87,0.00020821,2]
[368162396,1751043055455,-460.0,0.00020821,2]
[368162397,1751043055465,-460.0,0.00020821,2]
[368162398,1751043055475,-460.0,0.00020821,2]
[368162399,1751043055484,-460.0,0.00020821,2]
[368162400,1751043055493,-758.58,0.00020821,2]
[368162401,1751043055503,-1276.09,0.00020821,2]
[368162402,1751043055513,-6348.47,0.00020821,2]
[368162403,1751043055522,-460.0,0.00020821,2]
[368162404,1751043055534,-151.0,0.00020821,2]
[368162405,1751043055543,-4728.92,0.00020821,2]
[368162406,1751043055552,-1011.87,0.00020821,2]
[368162407,1751043055561,-460.0,0.00020821,2]
[368162408,1751043055571,-1345.96,0.00020821,2]
[368162409,1751043055581,-3328.7,0.00020821,2]
[368162410,1751043055590,-460.0,0.00020821,2]
[368162411,1751043055600,-460.0,0.00020821,2]
[368162412,1751043055610,-1436.21,0.00020821,2]
[368162413,1751043055620,-598.96,0.00020821,2]
[368162414,1751043055629,-460.0,0.00020821,2]
[368162415,1751043055639,-610.17,0.00020821,2]
[368162416,1751043055649,-517.435814,0.00020821,2]
[368162417,1751043055658,-517.435814,0.00020821,2]
[368162418,1751043055668,-634.89,0.00020821,2]
[368162419,1751043055677,-2701.01,0.00020821,2]
[368162420,1751043055687,-1107.05,0.00020821,2]
[368162421,1751043055696,-461.50259514,0.00020825,2]
[368162422,1751043055705,-500.0,0.00020844,2]
[368162423,1751043055715,-1465.69130697,0.00020868,2]
[368162424,1751043055724,-1500.0,0.00020868,2]
[368162425,1751043055733,-1500.0,0.00020868,2]
[368162426,1751043055742,-1500.0,0.00020868,2]
[368162427,1751043055752,-1050.86069672,0.00020868,2]
[368162428,1751043055761,-159.2394861,0.00020904,2]
[368162429,1751043055770,-7891.5880448,0.00020934,4]
[368162430,1751043055779,-241.925334,0.00020935,2]
[368162431,1751043055789,-151.0,0.00020935,2]
[368162432,1751043055798,-151.0,0.00020935,2]
[368162433,1751043055897,-151.276332,0.00020935,2]
[368162434,1751043055908,-151.276332,0.00020935,2]
[368162435,1751043055918,-151.0,0.00020935,2]
[368162436,1751043055927,-151.0,0.00020935,2]
[368162437,1751043055937,-343.433989,0.00020935,2]
[368162438,1751043055946,-343.433989,0.00020935,2]
[368162439,1751043055956,-165.037213,0.00020935,2]
[368162440,1751043055966,-165.037213,0.00020935,2]
[368162441,1751043055976,-164.638789,0.00020951,2]
[368162442,1751043055985,-460.0,0.00021095,2]
[368162443,1751043055995,-151.0,0.00021095,2]
[368162444,1751043056004,-460.0,0.00021095,2]
[368162445,1751043056014,-281.606926,0.00021095,2]
[368162446,1751043056023,-281.606926,0.00021095,2]
[368162447,1751043056032,-514.585119,0.00021095,2]
[368162448,1751043056042,-514.585119,0.00021095,2]
[368162449,1751043056051,-151.0,0.00021095,2]
[368162450,1751043056060,-151.0,0.00021095,2]
[368162451,1751043056070,-151.0,0.00021095,2]
[368162452,1751043056079,-151.0,0.00021095,2]
[368162453,1751043056089,-460.0,0.00021095,2]
[368162454,1751043056098,-340.176013,0.00021095,2]
[368162455,1751043056107,-340.176013,0.00021095,2]
[368162456,1751043056118,-151.0,0.00021095,2]
[368162457,1751043056127,-151.0,0.00021095,2]
[368162458,1751043056136,-460.0,0.00021095,2]
[368162459,1751043056145,-460.0,0.00021095,2]
[368162460,1751043056155,-460.0,0.00021095,2]
[368162461,1751043056166,-460.0,0.00021095,2]
[368162462,1751043056175,-460.0,0.00021095,2]
[368162463,1751043056186,-460.0,0.00021095,2]
[368162464,1751043056195,-460.0,0.00021095,2]
[368162465,1751043056204,-708.73,0.00021095,2]
[368162466,1751043056213,-460.0,0.00021095,2]
[368162467,1751043056223,-460.0,0.00021095,2]
[368162468,1751043056231,-460.0,0.00021095,2]
[368162469,1751043056241,-460.0,0.00021095,2]
[368162470,1751043056250,-460.0,0.00021095,2]
[368162471,1751043056259,-460.0,0.00021095,2]
[368162472,1751043056268,-237.66,0.00021095,2]
[368162473,1751043056277,-817.86,0.00021095,2]
[368162474,1751043056286,-632.72,0.00021095,2]
[368162475,1751043056295,-859.720302,0.00021095,2]
[368162476,1751043056305,-859.720302,0.00021095,2]
[368162477,1751043056314,-574.34,0.00021095,2]
[368162478,1751043056323,-575.67,0.00021095,2]
[368162479,1751043056332,-460.0,0.00021095,2]
[368162480,1751043056341,-460.0,0.00021095,2]
[368162481,1751043056350,-460.0,0.00021095,2]
[368162482,1751043056360,-665.43,0.00021095,2]
[368162483,1751043056369,-460.0,0.00021095,2]
[368162484,1751043056378,-460.0,0.00021095,2]
[368162485,1751043056387,-460.0,0.00021095,2]
[368162486,1751043056396,-460.0,0.00021095,2]
[368162487,1751043056405,-460.0,0.00021095,2]
[368162488,1751043056415,-460.0,0.00021095,2]
[368162489,1751043056424,-5094.42,0.00021095,2]
[368162490,1751043056435,-460.0,0.00021095,2]
[368162491,1751043056445,-1728.2,0.00021095,2]
[368162492,1751043056454,-4150.31,0.00021095,2]
[368162493,1751043056463,-460.0,0.00021095,2]
[368162494,1751043056473,-1950.71,0.00021095,2]
[368162495,1751043056482,-460.0,0.00021095,2]
[368162496,1751043056492,-438.36,0.00021095,2]
[368162497,1751043056501,-4539.33,0.00021095,2]
[368162498,1751043056510,-461.01546838,0.00021095,2]
[368162499,1751043056519,-581.86,0.00021095,2]
[368162500,1751043056529,-206.069329,0.00021095,2]
[368162501,1751043056542,-692.74,0.00021095,2]
[368162502,1751043056551,-460.0,0.00021095,2]
[368162503,1751043056560,-460.0,0.00021095,2]
[368162504,1751043056569,-256.966885,0.00021095,2]
[368162505,1751043056579,-206.069329,0.00021095,2]
[368162506,1751043056588,-256.966885,0.00021095,2]
[368162507,1751043056598,-460.0,0.00021095,2]
[368162508,1751043056608,-1477.84,0.00021095,2]
[368162509,1751043056617,-1419.89,0.00021095,2]
[368162510,1751043056627,-2340.21,0.00021095,2]
[368162511,1751043056636,-460.0,0.00021095,2]
[368162512,1751043056646,-460.0,0.00021095,2]
[368162513,1751043056655,-460.0,0.00021095,2]
[368162514,1751043056665,-460.0,0.00021095,2]
[368162515,1751043056673,-1165.21,0.00021095,2]
[368162516,1751043056683,-1348.73,0.00021095,2]
[368162517,1751043056693,-460.0,0.00021095,2]
[368162518,1751043056703,-465.34,0.00021095,2]
[368162519,1751043056712,-460.0,0.00021095,2]
[368162520,1751043056722,-460.0,0.00021095,2]
[368162521,1751043056731,-499.4,0.00021095,2]
[368162522,1751043056741,-1688.52,0.00021095,2]
[368162523,1751043056750,-460.0,0.00021095,2]
[368162524,1751043056758,-460.0,0.00021095,2]
[368162525,1751043056768,-839.88,0.00021095,2]
[368162526,1751043056777,-460.0,0.00021095,2]
[368162527,1751043056787,-460.0,0.00021095,2]
[368162528,1751043056796,-372.924926,0.00021095,2]
[368162529,1751043056806,-460.0,0.00021095,2]
[368162530,1751043056816,-372.924926,0.00021095,2]
[368162531,1751043056825,-688.86,0.00021095,2]
[368162532,1751043056834,-460.0,0.00021095,2]
[368162533,1751043056844,-460.0,0.00021095,2]
[368162534,1751043056854,-460.0,0.00021095,2]
[368162535,1751043056863,-671.69,0.00021095,2]
[368162536,1751043056873,-862.89,0.00021095,2]
[368162537,1751043056882,-460.0,0.00021095,2]
[368162538,1751043056892,-460.0,0.00021095,2]
[368162539,1751043056902,-3251.71,0.00021095,2]
[368162540,1751043056911,-781.68,0.00021095,2]
[368162541,1751043056920,-1656.91,0.00021095,2]
[368162542,1751043056930,-460.0,0.00021095,2]
[368162543,1751043056940,-2293.32,0.00021095,2]
[368162544,1751043056950,-460.0,0.00021095,2]
[368162545,1751043056959,-830.87,0.00021095,2]
[368162546,1751043056969,-460.0,0.00021095,2]
[368162547,1751043056979,-824.14,0.00021095,2]
[368162548,1751043056988,-987.87,0.00021095,2]
[368162549,1751043056997,-460.0,0.00021095,2]
[368162550,1751043057008,-460.0,0.00021095,2]
[368162551,1751043057018,-460.0,0.00021095,2]
[368162552,1751043057027,-460.0,0.00021095,2]
[368162553,1751043057038,-758.58,0.00021095,2]
[368162554,1751043057047,-1276.09,0.00021095,2]
[368162555,1751043057057,-6348.47,0.00021095,2]
[368162556,1751043057066,-460.0,0.00021095,2]
[368162557,1751043057075,-4728.92,0.00021095,2]
[368162558,1751043057085,-1011.87,0.00021095,2]
[368162559,1751043057095,-460.0,0.00021095,2]
[368162560,1751043057104,-1345.96,0.00021095,2]
[368162561,1751043057114,-3328.7,0.00021095,2]
[368162562,1751043057123,-460.0,0.00021095,2]
[368162563,1751043057133,-460.0,0.00021095,2]
[368162564,1751043057143,-1436.21,0.00021095,2]
[368162565,1751043057153,-598.96,0.00021095,2]
[368162566,1751043057163,-460.0,0.00021095,2]
[368162567,1751043057173,-610.17,0.00021095,2]
[368162568,1751043057183,-634.89,0.00021095,2]
[368162569,1751043057192,-2701.01,0.00021095,2]
[368162570,1751043057201,-1107.05,0.00021095,2]
[368162571,1751043057210,-7891.5880448,0.00021141,4]
[368162572,1751043057220,-13459.18367538,0.00021155,2]
[368162573,1751043057229,-500.0,0.0002123,2]
[368162574,1751043057238,-500.0,0.0002123,2]
[368162575,1751043057248,-500.0,0.0002123,2]
[368162576,1751043057257,-9220.02772774,0.00021269,2]
[368162577,1751043057266,-1027.067,0.00021306,2]
[368162578,1751043057276,-362.11921019,0.00021319,2]
[368162579,1751043057286,-500.0,0.00021319,2]
[368162580,1751043057295,-583.896093,0.00021325,2]
[368162581,1751043057305,-151.0,0.00021348,2]
[368162582,1751043057314,-151.0,0.00021348,2]
[368162583,1751043057323,-151.0,0.00021348,2]
[368162584,1751043057333,-151.0,0.00021348,2]
[368162585,1751043057342,-151.0,0.00021348,2]
[368162586,1751043057352,-151.0,0.00021348,2]
[368162587,1751043057361,-153.403596,0.00021348,2]
[368162588,1751043057371,-151.0,0.00021348,2]
[368162589,1751043057380,-517.435814,0.00021348,2]
[368162590,1751043057390,-517.435814,0.00021348,2]
[368162591,1751043057400,-7891.5880448,0.00021348,5]
[368162592,1751043057408,-409.86,0.0002136,3]
[368162593,1751043057418,-460.0,0.00021369,2]
[368162594,1751043057427,-460.0,0.00021369,2]
[368162595,1751043057438,-506.23481296,0.00021369,2]
[368162596,1751043057447,-460.0,0.00021369,2]
[368162597,1751043057456,-460.0,0.00021369,2]
[368162598,1751043057466,-460.0,0.00021369,2]
[368162599,1751043057475,-460.0,0.00021369,2]
[368162600,1751043057484,-460.0,0.00021369,2]
[368162601,1751043057493,-460.0,0.00021369,2]
[368162602,1751043057503,-708.73,0.00021369,2]
[368162603,1751043057512,-460.0,0.00021369,2]
[368162604,1751043057522,-594.53,0.00021369,2]
[368162605,1751043057533,-460.0,0.00021369,2]
[368162606,1751043057543,-460.0,0.00021369,2]
[368162607,1751043057553,-460.0,0.00021369,2]
[368162608,1751043057562,-817.86,0.00021369,2]
[368162609,1751043057572,-632.72,0.00021369,2]
[368162610,1751043057582,-285.914838,0.00021369,2]
[368162611,1751043057591,-285.914838,0.00021369,2]
[368162612,1751043057601,-460.0,0.00021369,2]
[368162613,1751043057611,-460.0,0.00021369,2]
[368162614,1751043057620,-460.0,0.00021369,2]
[368162615,1751043057629,-665.43,0.00021369,2]
[368162616,1751043057638,-460.0,0.00021369,2]
[368162617,1751043057648,-460.0,0.00021369,2]
[368162618,1751043057657,-460.0,0.00021369,2]
[368162619,1751043057667,-460.0,0.00021369,2]
[368162620,1751043057676,-460.0,0.00021369,2]
[368162621,1751043057685,-184.577065,0.00021369,2]
[368162622,1751043057694,-184.577065,0.00021369,2]
[368162623,1751043057704,-460.0,0.00021369,2]
[368162624,1751043057714,-5094.42,0.00021369,2]
[368162625,1751043057724,-460.0,0.00021369,2]
[368162626,1751043057735,-1728.2,0.00021369,2]
[368162627,1751043057744,-4150.31,0.00021369,2]
[368162628,1751043057754,-460.0,0.00021369,2]
[368162629,1751043057763,-1950.71,0.00021369,2]
[368162630,1751043057773,-460.0,0.00021369,2]
[368162631,1751043057868,-4539.33,0.00021369,2]
[368162632,1751043057878,-581.86,0.00021369,2]
[368162633,1751043057887,-692.74,0.00021369,2]
[368162634,1751043057896,-460.0,0.00021369,2]
[368162635,1751043057906,-460.0,0.00021369,2]
[368162636,1751043057915,-460.0,0.00021369,2]
[368162637,1751043057925,-1477.84,0.00021369,2]
[368162638,1751043057935,-1419.89,0.00021369,2]
[368162639,1751043057944,-2340.21,0.00021369,2]
[368162640,1751043057954,-460.0,0.00021369,2]
[368162641,1751043057963,-460.0,0.00021369,2]
[368162642,1751043057972,-460.0,0.00021369,2]
[368162643,1751043057981,-1165.21,0.00021369,2]
[368162644,1751043057990,-1348.73,0.00021369,2]
[368162645,1751043058000,-460.0,0.00021369,2]
[368162646,1751043058011,-465.34,0.00021369,2]
[368162647,1751043058021,-460.0,0.00021369,2]
[368162648,1751043058030,-460.0,0.00021369,2]
[368162649,1751043058040,-499.4,0.00021369,2]
[368162650,1751043058050,-1688.52,0.00021369,2]
[368162651,1751043058059,-460.0,0.00021369,2]
[368162652,1751043058068,-839.88,0.00021369,2]
[368162653,1751043058077,-460.0,0.00021369,2]
[368162654,1751043058087,-460.0,0.00021369,2]
[368162655,1751043058096,-460.0,0.00021369,2]
[368162656,1751043058106,-688.86,0.00021369,2]
[368162657,1751043058115,-460.0,0.00021369,2]
[368162658,1751043058125,-460.0,0.00021369,2]
[368162659,1751043058134,-460.0,0.00021369,2]
[368162660,1751043058143,-671.69,0.00021369,2]
[368162661,1751043058152,-862.89,0.00021369,2]
[368162662,1751043058162,-460.0,0.00021369,2]
[368162663,1751043058172,-3251.71,0.00021369,2]
[368162664,1751043058182,-781.68,0.00021369,2]
[368162665,1751043058191,-1656.91,0.00021369,2]
[368162666,1751043058201,-460.0,0.00021369,2]
[368162667,1751043058210,-2293.32,0.00021369,2]
[368162668,1751043058220,-460.0,0.00021369,2]
[368162669,1751043058230,-830.87,0.00021369,2]
[368162670,1751043058241,-338.16,0.00021369,2]
[368162671,1751043058252,-824.14,0.00021369,2]
[368162672,1751043058261,-987.87,0.00021369,2]
[368162673,1751043058271,-460.0,0.00021369,2]
[368162674,1751043058280,-460.0,0.00021369,2]
[368162675,1751043058289,-460.0,0.00021369,2]
[368162676,1751043058299,-460.0,0.00021369,2]
[368162677,1751043058308,-758.58,0.00021369,2]
[368162678,1751043058317,-1276.09,0.00021369,2]
[368162679,1751043058326,-6348.47,0.00021369,2]
[368162680,1751043058336,-460.0,0.00021369,2]
[368162681,1751043058345,-4728.92,0.00021369,2]
[368162682,1751043058354,-1011.87,0.00021369,2]
[368162683,1751043058363,-460.0,0.00021369,2]
[368162684,1751043058372,-1345.96,0.00021369,2]
[368162685,1751043058381,-3328.7,0.00021369,2]
[368162686,1751043058390,-460.0,0.00021369,2]
[368162687,1751043058399,-460.0,0.00021369,2]
[368162688,1751043058409,-1436.21,0.00021369,2]
[368162689,1751043058418,-598.96,0.00021369,2]
[368162690,1751043058428,-460.0,0.00021369,2]
[368162691,1751043058439,-610.17,0.00021369,2]
[368162692,1751043058448,-634.89,0.00021369,2]
[368162693,1751043058457,-2701.01,0.00021369,2]
[368162694,1751043058466,-1107.05,0.00021369,2]
[368162695,1751043058475,-500.0,0.00021416,2]
[368162696,1751043058484,-500.0,0.00021492,2]
[368162697,1751043058493,-500.0,0.00021492,2]
[368162698,1751043058503,-600.0,0.00021492,2]
[368162699,1751043058512,-500.0,0.00021492,2]
[368162700,1751043058521,-500.0,0.00021492,2]
[368162701,1751043058533,-500.0,0.00021492,2]
[368162702,1751043058542,-500.0,0.00021492,2]
[368162703,1751043058551,-7891.5880448,0.00021555,5]
[368162704,1751043058560,-920.402386,0.00021559,4]
[368162705,1751043058570,-486.92491528,0.00021643,2]
[368162706,1751043058580,-291.48611654,0.00021643,2]
[368162707,1751043058589,-151.0,0.00021643,2]
[368162708,1751043058598,-151.0,0.00021643,2]
[368162709,1751043058609,-460.0,0.00021643,2]
[368162710,1751043058618,-1233.005726,0.00021643,2]
[368162711,1751043058628,-1233.005726,0.00021643,2]
[368162712,1751043058637,-460.0,0.00021643,2]
[368162713,1751043058646,-151.0,0.00021643,2]
[368162714,1751043058655,-151.0,0.00021643,2]
[368162715,1751043058665,-151.0,0.00021643,2]
[368162716,1751043058674,-347.38632927,0.00021643,2]
[368162717,1751043058683,-151.0,0.00021643,2]
[368162718,1751043058692,-539.66,0.00021643,2]
[368162719,1751043058701,-460.0,0.00021643,2]
[368162720,1751043058710,-463.67,0.00021643,2]
[368162721,1751043058719,-708.73,0.00021643,2]
[368162722,1751043058728,-460.0,0.00021643,2]
[368162723,1751043058738,-151.276332,0.00021643,2]
[368162724,1751043058747,-151.276332,0.00021643,2]
[368162725,1751043058756,-460.0,0.00021643,2]
[368162726,1751043058766,-460.0,0.00021643,2]
[368162727,1751043058777,-460.0,0.00021643,2]
[368162728,1751043058786,-151.0,0.00021643,2]
[368162729,1751043058796,-817.86,0.00021643,2]
[368162730,1751043058806,-151.0,0.00021643,2]
[368162731,1751043058816,-632.72,0.00021643,2]
[368162732,1751043058825,-343.433989,0.00021643,2]
[368162733,1751043058835,-460.0,0.00021643,2]